[Event "FIDE WCCC Open-12 2024"]
[Site "Montesilvano"]
[Date "2024.11.18"]
[Round "2.30"]
[White "Berdashkevich, Makar"]
[Black "Vorobyov, Radmir"]
[Result "1-0"]
[ECO "C78"]
[WhiteElo "1848"]
[BlackElo "2017"]
[PlyCount "89"]
[EventDate "2024.11.18"]
[EventType "swiss"]
[EventCountry "ITA"]
[TimeControl "5400+30"]

1. e4 {[%emt 0:00:05]} e5 {[%emt 0:00:13]} 2. Nf3 {[%emt 0:00:33]} Nc6 {[%emt 0:00:06]} 3. Bb5 {[%emt 0:00:23]} Nf6 {[%emt 0:00:07]} 4. d3 {[%emt 0:00:24]} Bc5 {[%emt 0:04:22]} 5. O-O {[%emt 0:01:11]} d6 {[%emt 0:01:04]} 6. c3 {[%emt 0:00:38]} a6 {[%emt 0:03:11]} 7. Ba4 {[%emt 0:01:28]} b5 {[%emt 0:00:48]} 8. Bc2 {[%emt 0:00:24]} Bg4 {[%emt 0:00:23]} 9. h3 {[%emt 0:02:18]} Bh5 {[%emt 0:00:31]} 10. Nbd2 {[%emt 0:00:59]} O-O {[%emt 0:01:13]} 11. a4 {[%emt 0:12:27]} Qd7 {[%emt 0:12:28]} 12. Re1 {[%emt 0:04:06]} d5 {[%emt 0:08:10]} 13. Qe2 {[%emt 0:10:40]} b4 {[%emt 0:09:58]} 14. a5 {[%emt 0:14:18]} d4 {[%emt 0:16:33]} 15. c4 {[%emt 0:09:31]} Qd6 {[%emt 0:04:59]} 16. Nb3 {[%emt 0:14:58]} h6 {[%emt 0:02:35]} 17. Bd1 {[%emt 0:02:02]} Ne7 {[%emt 0:01:39]} 18. g4 {[%emt 0:02:40]} Bg6 {[%emt 0:05:21]} 19. Qf1 {[%emt 0:02:42]} Ba7 {[%emt 0:01:05]} 20. Qg2 {[%emt 0:00:42]} h5 {[%emt 0:15:19]} 21. Kh1 {[%emt 0:03:16]} hxg4 {[%emt 0:03:00]} 22. hxg4 {[%emt 0:01:36]} Nd7 {[%emt 0:01:31]} 23. Nh4 {[%emt 0:02:16]} f6 {[%emt 0:03:10]} 24. Qg3 {[%emt 0:02:33]} Kf7 {[%emt 0:00:56]} 25. f4 {[%emt 0:01:32]} exf4 {[%emt 0:03:07]} 26. Bxf4 {[%emt 0:00:19]} Ne5 {[%emt 0:01:05]} 27. c5 {[%emt 0:04:09]} Bxc5 {[%emt 0:00:33]} 28. Nf5 {[%emt 0:01:01]} Bxf5 {[%emt 0:00:23]} 29. exf5 {[%emt 0:00:20]} Qd5+ {[%emt 0:00:22]} 30. Re4 {[%emt 0:01:20]} Rh8+ {[%emt 0:00:30]} 31. Kg1 {[%emt 0:01:04]} N7c6 {[%emt 0:00:40]} 32. Nxc5 {[%emt 0:02:06]} Qxc5 {[%emt 0:00:05]} 33. Bb3+ {[%emt 0:00:09]} Kf8 {[%emt 0:00:52]} 34. Rc1 {[%emt 0:00:38]} Qb5 {[%emt 0:00:31]} 35. Bxe5 {[%emt 0:02:11]} fxe5 {[%emt 0:00:34]} 36. Ra1 {[%emt 0:00:52]} Re8 {[%emt 0:00:33]} 37. g5 {[%emt 0:00:34]} Nxa5 {[%emt 0:00:31]} 38. Ba4 {[%emt 0:00:13]} Qb8 {[%emt 0:00:24]} 39. Bxe8 {[%emt 0:00:13]} Qxe8 {[%emt 0:00:05]} 40. g6 {[%emt 0:00:53]} Nb3 {[%emt 0:00:48]} 41. Rae1 {[%emt 0:00:31]} Nd2 {[%emt 0:00:44]} 42. Rxe5 {[%emt 0:00:20]} Qc6 {[%emt 0:00:18]} 43. Re8+ {[%emt 0:00:07]} Qxe8 {[%emt 0:00:36]} 44. Rxe8+ {[%emt 0:00:05]} Kxe8 {[%emt 0:00:02]} 45. Qe1+ {[%emt 0:00:12]} 1-0

[Event "FIDE WCCC Open-12 2024"]
[Site "Montesilvano"]
[Date "2024.11.18"]
[Round "2.31"]
[White "Stepanyan, Davit"]
[Black "Simiyu Jadon"]
[Result "1-0"]
[ECO "D55"]
[WhiteElo "2011"]
[BlackElo "1784"]
[PlyCount "61"]
[EventDate "2024.11.18"]
[EventType "swiss"]
[EventCountry "ITA"]
[TimeControl "5400+30"]

1. d4 {[%emt 0:00:03]} d5 {[%emt 0:00:57]} 2. c4 {[%emt 0:00:22]} e6 {[%emt 0:00:09]} 3. Nc3 {[%emt 0:00:20]} Nf6 {[%emt 0:00:11]} 4. Bg5 {[%emt 0:00:16]} Be7 {[%emt 0:00:11]} 5. Nf3 {[%emt 0:00:20]} h6 {[%emt 1:31:32]} 6. Bxf6 {[%emt 0:02:16]} Bxf6 {[%emt 0:00:00]} 7. e3 {[%emt 0:00:23]} O-O {[%emt 0:00:00]} 8. Qd2 {[%emt 0:00:07]} c6 {[%emt 0:00:00]} 9. h4 {[%emt 0:00:55]} h5 {[%emt 0:00:00]} 10. Be2 {[%emt 0:01:36]} g6 {[%emt 0:00:00]} 11. O-O-O {[%emt 0:02:15]} dxc4 {[%emt 0:00:00]} 12. Bxc4 {[%emt 0:00:43]} b5 {[%emt 0:00:00]} 13. Bd3 {[%emt 0:00:13]} Re8 {[%emt 0:00:00]} 14. Ne4 {[%emt 0:01:31]} Be7 {[%emt 0:00:00]} 15. Ne5 {[%emt 0:01:54]} f5 {[%emt 0:00:00]} 16. Ng5 {[%emt 0:01:40]} Bxg5 {[%emt 0:00:00]} 17. hxg5 {[%emt 0:00:30]} Kg7 {[%emt 0:00:00]} 18. f4 {[%emt 0:00:36]} Bb7 {[%emt 0:00:00]} 19. g4 {[%emt 0:02:13]} Rh8 {[%emt 0:00:00]} 20. gxh5 {[%emt 0:00:15]} gxh5 {[%emt 0:00:00]} 21. Rh4 {[%emt 0:00:34]} Nd7 {[%emt 0:00:00]} 22. Qh2 {[%emt 0:01:07]} Nxe5 {[%emt 0:00:00]} 23. dxe5 {[%emt 0:00:13]} Qb6 {[%emt 0:00:00]} 24. Kb1 {[%emt 0:04:18]} Qxe3 {[%emt 0:00:00]} 25. Rh3 {[%emt 0:00:26]} Qb6 {[%emt 0:00:00]} 26. Rxh5 {[%emt 0:00:35]} c5 {[%emt 0:00:00]} 27. Bxf5 {[%emt 0:00:44]} Bd5 {[%emt 0:00:00]} 28. Rh7+ {[%emt 0:00:21]} Rxh7 {[%emt 0:00:00]} 29. Qxh7+ {[%emt 0:00:04]} Kf8 {[%emt 0:00:00]} 30. Qh8+ {[%emt 0:00:16]} Kf7 {[%emt 0:00:00]} 31. g6+ {[%emt 1:18:54]} 1-0

[Event "FIDE WCCC Open-12 2024"]
[Site "Montesilvano"]
[Date "2024.11.18"]
[Round "2.32"]
[White "Petrovski, Nikola"]
[Black "Wijerathna, Vinuka Dihain"]
[Result "0-1"]
[ECO "C54"]
[WhiteElo "1829"]
[BlackElo "2004"]
[PlyCount "150"]
[EventDate "2024.11.18"]
[EventType "swiss"]
[EventCountry "ITA"]
[TimeControl "5400+30"]

1. e4 {[%emt 0:01:24]} e5 {[%emt 0:00:26]} 2. Nf3 {[%emt 0:00:13]} Nc6 {[%emt 0:00:12]} 3. Bc4 {[%emt 0:00:19]} Bc5 {[%emt 0:00:18]} 4. c3 {[%emt 0:00:08]} Nf6 {[%emt 0:00:20]} 5. d3 {[%emt 0:00:10]} a6 {[%emt 0:00:56]} 6. a4 {[%emt 0:00:39]} d6 {[%emt 0:00:17]} 7. b4 {[%emt 0:02:22]} Ba7 {[%emt 0:00:21]} 8. O-O {[%emt 0:00:28]} h6 {[%emt 0:00:36]} 9. Be3 {[%emt 0:09:25]} O-O {[%emt 0:01:00]} 10. Bxa7 {[%emt 0:00:43]} Rxa7 {[%emt 0:00:10]} 11. Nbd2 {[%emt 0:00:29]} Ra8 {[%emt 0:01:02]} 12. Qb3 {[%emt 0:00:29]} Bg4 {[%emt 0:07:32]} 13. Rfe1 {[%emt 0:06:21]} Qd7 {[%emt 0:03:43]} 14. Re3 {[%emt 0:11:03]} Rfe8 {[%emt 0:05:52]} 15. h3 {[%emt 0:02:25]} Be6 {[%emt 0:03:46]} 16. Bxe6 {[%emt 0:06:34]} Rxe6 {[%emt 0:02:03]} 17. d4 {[%emt 0:08:47]} Ree8 {[%emt 0:12:11]} 18. Ree1 {[%emt 0:18:42]} b6 {[%emt 0:17:26]} 19. Rad1 {[%emt 0:09:27]} Rad8 {[%emt 0:05:52]} 20. Qc2 {[%emt 0:11:57]} Qe7 {[%emt 0:11:46]} 21. Qb1 {[%emt 0:02:32]} Ra8 {[%emt 0:08:25]} 22. d5 {[%emt 0:05:49]} Nb8 {[%emt 0:01:34]} 23. Nf1 {[%emt 0:00:33]} Nbd7 {[%emt 0:01:20]} 24. Ng3 {[%emt 0:00:31]} g6 {[%emt 0:00:34]} 25. Qc1 {[%emt 0:00:29]} Kh7 {[%emt 0:00:41]} 26. Nh2 {[%emt 0:00:35]} Rf8 {[%emt 0:02:06]} 27. f4 {[%emt 0:00:35]} exf4 {[%emt 0:00:23]} 28. Qxf4 {[%emt 0:00:05]} Qe5 {[%emt 0:00:06]} 29. Qe3 {[%emt 0:01:07]} Rae8 {[%emt 0:00:12]} 30. Kf2 {[%emt 0:00:23]} Qe7 {[%emt 0:05:57]} 31. Nf3 {[%emt 0:00:15]} Ne5 {[%emt 0:00:07]} 32. Kg1 {[%emt 0:00:27]} Nfd7 {[%emt 0:00:54]} 33. Nd4 {[%emt 0:00:34]} Qh4 {[%emt 0:02:27]} 34. Rf1 {[%emt 0:00:52]} Qg5 {[%emt 0:01:22]} 35. Qxg5 {[%emt 0:00:31]} hxg5 {[%emt 0:00:01]} 36. Rf2 {[%emt 0:00:10]} Kg7 {[%emt 0:00:41]} 37. Rdd2 {[%emt 0:00:45]} Rh8 {[%emt 0:00:42]} 38. Rd1 {[%emt 0:00:28]} Ra8 {[%emt 0:02:30]} 39. Rdf1 {[%emt 0:00:40]} a5 {[%emt 0:00:33]} 40. b5 {[%emt 0:00:12]} Nc5 {[%emt 0:00:07]} 41. Nc6 {[%emt 0:00:21]} Ncd7 {[%emt 0:01:11]} 42. Ne2 {[%emt 0:00:47]} Rhf8 {[%emt 0:01:06]} 43. Ned4 {[%emt 0:00:35]} Nc5 {[%emt 0:00:19]} 44. Ra2 {[%emt 0:00:37]} Nxe4 {[%emt 0:01:38]} 45. c4 {[%emt 0:00:24]} Rae8 {[%emt 0:00:48]} 46. Nxe5 {[%emt 0:01:08]} dxe5 {[%emt 0:00:57]} 47. Nc6 {[%emt 0:00:00]} f6 {[%emt 0:00:07]} 48. Kh2 {[%emt 0:00:13]} Rf7 {[%emt 0:00:20]} 49. Rc2 {[%emt 0:00:35]} Nc5 {[%emt 0:00:07]} 50. Ra2 {[%emt 0:00:23]} Rd7 {[%emt 0:00:30]} 51. Raf2 {[%emt 0:00:26]} Rd6 {[%emt 0:00:12]} 52. Ra2 {[%emt 0:00:31]} e4 {[%emt 0:01:13]} 53. Nd4 {[%emt 0:00:04]} f5 {[%emt 0:00:31]} 54. Re1 {[%emt 0:01:11]} Rf8 {[%emt 0:01:08]} 55. Rae2 {[%emt 0:00:30]} f4 {[%emt 0:00:32]} 56. Rxe4 Nxe4 {[%emt 0:00:12]} 57. Rxe4 {[%emt 0:00:58]} Kf6 {[%emt 0:00:21]} 58. g3 {[%emt 0:00:29]} fxg3+ {[%emt 0:00:24]} 59. Kxg3 {[%emt 0:00:07]} Rf7 {[%emt 0:00:14]} 60. Nc6 {[%emt 0:00:52]} Kg7 {[%emt 0:00:31]} 61. Nd4 {[%emt 0:00:15]} Rdf6 {[%emt 0:00:22]} 62. Ne6+ {[%emt 0:00:51]} Kh6 {[%emt 0:00:17]} 63. h4 {[%emt 0:00:31]} Rf3+ {[%emt 0:00:05]} 64. Kg4 {[%emt 0:00:06]} gxh4 {[%emt 0:00:40]} 65. Kxh4 {[%emt 0:00:32]} Rf1 {[%emt 0:01:16]} 66. Kg3 {[%emt 0:00:26]} g5 {[%emt 0:00:34]} 67. Re2 {[%emt 0:00:48]} Rg1+ {[%emt 0:00:27]} 68. Kh2 {[%emt 0:00:04]} Rg4 {[%emt 0:00:15]} 69. Nd8 {[%emt 0:00:52]} Rh7 {[%emt 0:00:35]} 70. Re3 {[%emt 0:00:33]} Kg6+ {[%emt 0:00:13]} 71. Rh3 {[%emt 0:00:06]} Rxh3+ {[%emt 0:00:05]} 72. Kxh3 {[%emt 0:00:02]} Rxc4 {[%emt 0:00:06]} 73. Nc6 {[%emt 0:00:23]} Kf6 {[%emt 0:00:17]} 74. Kg3 {[%emt 0:00:30]} Rc5 {[%emt 0:00:21]} 75. Nb8 {[%emt 0:00:21]} Rxd5 {[%emt 0:00:10]} 0-1

[Event "FIDE WCCC Open-12 2024"]
[Site "Montesilvano"]
[Date "2024.11.18"]
[Round "2.33"]
[White "Smirnov, Mark"]
[Black "Mikolavicius, Julius"]
[Result "1-0"]
[ECO "B90"]
[WhiteElo "2300"]
[BlackElo "1746"]
[PlyCount "79"]
[EventDate "2024.11.18"]
[EventType "swiss"]
[EventCountry "ITA"]
[TimeControl "5400+30"]

1. e4 {[%emt 0:00:03]} c5 {[%emt 0:00:04]} 2. Nf3 {[%emt 0:00:41]} d6 {[%emt 0:00:07]} 3. d4 {[%emt 0:03:13]} cxd4 {[%emt 0:00:06]} 4. Nxd4 {[%emt 0:00:54]} Nf6 {[%emt 0:00:06]} 5. Nc3 {[%emt 0:00:03]} a6 {[%emt 0:00:07]} 6. Bd3 {[%emt 0:00:47]} e5 {[%emt 0:00:14]} 7. Nde2 {[%emt 0:00:09]} Be6 {[%emt 0:01:50]} 8. O-O {[%emt 0:01:53]} Be7 {[%emt 0:00:59]} 9. h3 {[%emt 0:07:37]} O-O {[%emt 0:00:33]} 10. Nd5 {[%emt 0:05:37]} Bxd5 {[%emt 0:12:34]} 11. exd5 {[%emt 0:00:06]} Nbd7 {[%emt 0:02:42]} 12. c4 {[%emt 0:03:09]} Rc8 {[%emt 0:00:49]} 13. b3 {[%emt 0:06:43]} Nc5 {[%emt 0:05:11]} 14. Bf5 {[%emt 0:05:12]} Rb8 {[%emt 0:00:33]} 15. b4 {[%emt 0:01:34]} Ncd7 {[%emt 0:01:08]} 16. Be3 {[%emt 0:04:16]} g6 {[%emt 0:03:47]} 17. Bd3 {[%emt 0:11:34]} Nh5 {[%emt 0:00:51]} 18. Rc1 {[%emt 0:09:05]} f5 {[%emt 0:02:21]} 19. Bh6 {[%emt 0:01:35]} Ng7 {[%emt 0:03:36]} 20. c5 {[%emt 0:01:54]} dxc5 {[%emt 0:07:31]} 21. d6 {[%emt 0:00:12]} Bg5 {[%emt 0:00:26]} 22. Bxg5 {[%emt 0:00:13]} Qxg5 {[%emt 0:00:09]} 23. bxc5 {[%emt 0:00:58]} f4 {[%emt 0:02:35]} 24. Nc3 {[%emt 0:10:55]} Nxc5 {[%emt 0:05:08]} 25. Ne4 {[%emt 0:01:46]} Nxe4 {[%emt 0:00:23]} 26. Bxe4 {[%emt 0:00:03]} Kh8 {[%emt 0:00:48]} 27. d7 {[%emt 0:10:23]} Ne6 {[%emt 0:01:26]} 28. Qd6 {[%emt 0:02:05]} Nd4 {[%emt 0:01:39]} 29. Rc5 {[%emt 0:02:02]} f3 {[%emt 0:09:39]} 30. g3 {[%emt 0:00:29]} Nb5 {[%emt 0:13:09]} 31. Qxe5+ {[%emt 0:02:48]} Qxe5 {[%emt 0:00:35]} 32. Rxe5 {[%emt 0:00:04]} Nc3 {[%emt 0:04:27]} 33. Bxf3 {[%emt 0:01:23]} Rbd8 {[%emt 0:07:39]} 34. Re7 {[%emt 0:02:20]} Nxa2 {[%emt 0:14:18]} 35. Rfe1 {[%emt 0:01:37]} Nb4 {[%emt 0:00:00]} 36. Bxb7 {[%emt 0:01:52]} Kg8 {[%emt 0:00:00]} 37. Rc1 {[%emt 0:01:19]} Rxf2 {[%emt 0:00:00]} 38. Kxf2 {[%emt 0:00:31]} Nd3+ {[%emt 0:00:00]} 39. Ke3 {[%emt 0:00:06]} Rxd7 {[%emt 0:00:00]} 40. Rc8+ {[%emt 0:00:07]} 1-0

[Event "FIDE WCCC Open-12 2024"]
[Site "Montesilvano"]
[Date "2024.11.18"]
[Round "2.34"]
[White "Dauren, Darmen"]
[Black "Ritzerveld, Noah"]
[Result "1-0"]
[ECO "D00"]
[WhiteElo "1820"]
[BlackElo "2285"]
[PlyCount "83"]
[EventDate "2024.11.18"]
[EventType "swiss"]
[EventCountry "ITA"]
[TimeControl "5400+30"]

1. d4 {[%emt 0:01:33]} d5 {[%emt 0:00:07]} 2. Bg5 {[%emt 0:00:30]} h6 {[%emt 0:04:14]} 3. Bf4 {[%emt 0:06:08]} c5 {[%emt 0:03:56]} 4. e3 {[%emt 0:00:56]} Nc6 {[%emt 0:00:58]} 5. Nf3 {[%emt 0:00:54]} Nf6 {[%emt 0:02:45]} 6. Nc3 {[%emt 0:03:15]} Bg4 {[%emt 0:04:29]} 7. Bb5 {[%emt 0:03:28]} e6 {[%emt 0:03:33]} 8. Qd3 {[%emt 0:10:47]} c4 {[%emt 0:10:38]} 9. Qe2 {[%emt 0:03:54]} Bd6 {[%emt 0:07:59]} 10. Bxc6+ {[%emt 0:10:56]} bxc6 {[%emt 0:00:06]} 11. Bxd6 {[%emt 0:00:16]} Qxd6 {[%emt 0:00:18]} 12. e4 {[%emt 0:03:20]} Qf4 {[%emt 0:08:59]} 13. Qe3 {[%emt 0:04:53]} Qxe3+ {[%emt 0:03:31]} 14. fxe3 {[%emt 0:00:43]} Nd7 {[%emt 0:05:41]} 15. b3 {[%emt 0:07:06]} Bxf3 {[%emt 0:02:47]} 16. gxf3 {[%emt 0:00:42]} Nb6 {[%emt 0:01:02]} 17. exd5 {[%emt 0:00:34]} cxd5 {[%emt 0:01:20]} 18. b4 {[%emt 0:00:22]} Kd7 {[%emt 0:03:57]} 19. a4 {[%emt 0:01:00]} a5 {[%emt 0:02:36]} 20. Rb1 {[%emt 0:02:13]} Kc6 {[%emt 0:03:40]} 21. Kf2 {[%emt 0:06:53]} Ra7 {[%emt 0:06:23]} 22. bxa5 {[%emt 0:06:09]} Rxa5 {[%emt 0:00:11]} 23. Rb4 {[%emt 0:00:51]} Rha8 {[%emt 0:01:40]} 24. Ra1 {[%emt 0:02:18]} R5a6 {[%emt 0:03:37]} 25. Ke2 {[%emt 0:01:00]} R6a7 {[%emt 0:02:50]} 26. Kd2 {[%emt 0:00:13]} Ra6 {[%emt 0:01:50]} 27. Rg1 {[%emt 0:06:12]} g5 {[%emt 0:02:10]} 28. Rgb1 {[%emt 0:00:31]} Nxa4 {[%emt 0:02:08]} 29. Nxa4 {[%emt 0:00:22]} Rxa4 {[%emt 0:00:45]} 30. Rb7 {[%emt 0:00:07]} R4a6 {[%emt 0:01:47]} 31. Rxf7 {[%emt 0:00:14]} R8a7 {[%emt 0:04:34]} 32. Rf6 {[%emt 0:00:17]} Kd6 {[%emt 0:00:19]} 33. e4 {[%emt 0:02:22]} dxe4 {[%emt 0:00:42]} 34. fxe4 {[%emt 0:00:03]} h5 {[%emt 0:01:24]} 35. Rb5 {[%emt 0:00:24]} Rg7 {[%emt 0:00:49]} 36. Rc5 {[%emt 0:02:52]} h4 {[%emt 0:00:52]} 37. e5+ {[%emt 0:00:30]} Kd7 {[%emt 0:00:12]} 38. d5 {[%emt 0:01:10]} g4 {[%emt 0:00:27]} 39. d6 {[%emt 0:00:25]} Ra7 {[%emt 0:00:18]} 40. Rf8 {[%emt 0:00:16]} c3+ {[%emt 0:02:19]} 41. Ke2 {[%emt 0:01:00]} g3 {[%emt 0:00:22]} 42. Rcc8 {[%emt 0:00:11]} 1-0

[Event "FIDE WCCC Open-12 2024"]
[Site "Montesilvano"]
[Date "2024.11.18"]
[Round "2.35"]
[White "Xia, Jinnan"]
[Black "Saminskij, Jan"]
[Result "1-0"]
[ECO "D36"]
[WhiteElo "1850"]
[BlackElo "2202"]
[PlyCount "123"]
[EventDate "2024.11.18"]
[EventType "swiss"]
[EventCountry "ITA"]
[TimeControl "5400+30"]

1. d4 {[%emt 0:00:02]} d5 {[%emt 0:00:09]} 2. c4 {[%emt 0:00:02]} e6 {[%emt 0:00:09]} 3. Nc3 {[%emt 0:00:03]} Nf6 {[%emt 0:00:42]} 4. cxd5 {[%emt 0:00:04]} exd5 {[%emt 0:00:06]} 5. Bg5 {[%emt 0:00:03]} Be7 {[%emt 0:01:02]} 6. e3 {[%emt 0:00:07]} Nbd7 {[%emt 0:00:10]} 7. Bd3 {[%emt 0:00:05]} c6 {[%emt 0:00:05]} 8. Nge2 {[%emt 0:00:06]} Nf8 {[%emt 0:00:09]} 9. O-O {[%emt 0:00:26]} Ne6 {[%emt 0:00:24]} 10. Bh4 {[%emt 0:00:05]} O-O {[%emt 0:01:32]} 11. Qc2 {[%emt 1:34:57]} g6 {[%emt 0:00:17]} 12. Rad1 {[%emt 0:00:00]} Re8 {[%emt 0:01:11]} 13. f3 {[%emt 0:00:00]} b5 {[%emt 0:00:40]} 14. Bf2 {[%emt 0:00:00]} a5 {[%emt 0:01:20]} 15. h3 {[%emt 0:00:00]} Ba6 {[%emt 0:02:52]} 16. e4 {[%emt 0:00:00]} Qb6 {[%emt 0:02:38]} 17. e5 {[%emt 0:00:00]} Nh5 {[%emt 0:00:24]} 18. Be3 {[%emt 0:00:00]} Nhf4 {[%emt 0:15:41]} 19. Nxf4 {[%emt 0:00:00]} Nxf4 {[%emt 0:00:08]} 20. Bf5 {[%emt 0:00:00]} Ne6 {[%emt 0:07:56]} 21. Bxe6 {[%emt 0:00:00]} fxe6 {[%emt 0:00:36]} 22. Rf2 {[%emt 0:00:00]} Rac8 {[%emt 0:08:35]} 23. Qb3 {[%emt 0:00:00]} b4 {[%emt 0:02:36]} 24. Na4 {[%emt 0:00:00]} Qb8 {[%emt 0:00:24]} 25. Rc1 {[%emt 0:00:00]} Bc4 {[%emt 0:00:37]} 26. Qd1 {[%emt 0:00:00]} b3 {[%emt 0:01:49]} 27. a3 {[%emt 0:00:00]} c5 {[%emt 0:03:24]} 28. dxc5 {[%emt 0:00:00]} Qxe5 {[%emt 0:01:11]} 29. Qd2 {[%emt 0:00:00]} Bh4 {[%emt 0:03:01]} 30. Nb6 {[%emt 0:00:00]} Rcd8 {[%emt 0:04:14]} 31. Bd4 {[%emt 0:00:00]} Bxf2+ {[%emt 0:01:12]} 32. Kxf2 {[%emt 0:00:00]} Qf5 {[%emt 0:01:35]} 33. c6 {[%emt 0:00:00]} e5 {[%emt 0:09:39]} 34. c7 {[%emt 0:00:00]} Rc8 {[%emt 0:00:49]} 35. Nxc8 {[%emt 0:00:00]} Rxc8 {[%emt 0:00:47]} 36. Bb6 {[%emt 0:00:00]} e4 {[%emt 0:00:27]} 37. f4 {[%emt 0:00:00]} g5 {[%emt 0:07:51]} 38. Kg3 {[%emt 0:02:39]} h6 {[%emt 0:13:08]} 39. fxg5 {[%emt 0:09:16]} hxg5 {[%emt 0:00:04]} 40. Kh2 {[%emt 0:01:57]} a4 {[%emt 0:00:02]} 41. Kh1 {[%emt 0:00:29]} Kf7 {[%emt 0:01:34]} 42. Ba5 {[%emt 0:00:31]} Qf4 {[%emt 0:02:23]} 43. Qd1 {[%emt 0:00:30]} Kg6 {[%emt 0:00:24]} 44. Qe1 {[%emt 0:00:36]} e3 {[%emt 0:01:20]} 45. Rc3 {[%emt 0:00:22]} e2 {[%emt 0:01:20]} 46. Rf3 {[%emt 0:00:07]} Qe5 {[%emt 0:00:47]} 47. Qb4 {[%emt 0:00:40]} Qe6 {[%emt 0:01:47]} 48. Qe1 {[%emt 0:00:27]} d4 {[%emt 0:00:32]} 49. Rg3 {[%emt 0:00:09]} Rf8 {[%emt 0:00:50]} 50. Qd2 {[%emt 0:00:51]} Qe5 {[%emt 0:00:27]} 51. Kh2 {[%emt 0:00:22]} Be6 {[%emt 0:01:37]} 52. Qd3+ {[%emt 0:00:59]} Kh6 {[%emt 0:00:19]} 53. Be1 {[%emt 0:00:24]} Rf1 {[%emt 0:00:44]} 54. Qd2 {[%emt 0:00:20]} d3 {[%emt 0:01:12]} 55. h4 {[%emt 0:00:42]} Kg7 {[%emt 0:01:51]} 56. Qc3 {[%emt 0:00:19]} Qxc3 {[%emt 0:00:38]} 57. Bxc3+ {[%emt 0:00:04]} Kf7 {[%emt 0:00:41]} 58. Re3 {[%emt 0:00:54]} Bf5 {[%emt 0:00:42]} 59. Rxd3 {[%emt 0:00:40]} e1=Q {[%emt 0:00:11]} 60. Bxe1 {[%emt 0:00:04]} Rxe1 {[%emt 0:00:08]} 61. Rf3 {[%emt 0:00:04]} Rc1 {[%emt 0:00:39]} 62. Rxf5+ {[%emt 0:00:13]} 1-0

[Event "FIDE WCCC Open-12 2024"]
[Site "Montesilvano"]
[Date "2024.11.18"]
[Round "2.37"]
[White "Marchand, Calix"]
[Black "Aadik Theophane Lenin"]
[Result "0-1"]
[ECO "B22"]
[WhiteElo "2027"]
[BlackElo "1857"]
[PlyCount "82"]
[EventDate "2024.11.18"]
[EventType "swiss"]
[EventCountry "ITA"]
[TimeControl "5400+30"]

1. e4 {[%emt 0:00:08]} c5 {[%emt 0:00:12]} 2. c3 {[%emt 0:00:06]} Nf6 {[%emt 0:00:12]} 3. e5 {[%emt 0:00:14]} Nd5 {[%emt 0:00:03]} 4. Nf3 {[%emt 0:00:24]} Nc6 {[%emt 0:01:06]} 5. Bc4 {[%emt 0:00:32]} Nb6 {[%emt 0:02:38]} 6. Bb3 {[%emt 0:00:09]} c4 {[%emt 0:03:19]} 7. Bc2 {[%emt 0:00:23]} d6 {[%emt 0:00:36]} 8. exd6 {[%emt 0:01:12]} Qxd6 {[%emt 0:00:20]} 9. O-O {[%emt 0:01:06]} Bg4 {[%emt 0:01:22]} 10. Qe2 {[%emt 0:00:57]} e6 {[%emt 0:05:26]} 11. b3 {[%emt 0:02:35]} cxb3 {[%emt 0:04:31]} 12. axb3 {[%emt 0:00:59]} Nd5 {[%emt 0:00:53]} 13. d4 {[%emt 0:06:52]} Rc8 {[%emt 0:02:38]} 14. Be4 {[%emt 0:07:29]} Be7 {[%emt 0:21:21]} 15. Bd2 {[%emt 0:00:17]} O-O {[%emt 0:00:45]} 16. Na3 {[%emt 0:02:15]} Qd7 {[%emt 0:09:54]} 17. Rfe1 {[%emt 0:04:07]} Na5 {[%emt 0:07:14]} 18. c4 {[%emt 0:08:16]} Nb4 {[%emt 0:00:56]} 19. Qe3 {[%emt 0:04:46]} Bxf3 {[%emt 0:02:47]} 20. Bxf3 {[%emt 0:05:15]} Rfd8 {[%emt 0:01:32]} 21. Bc3 {[%emt 0:03:03]} Nxb3 {[%emt 0:05:58]} 22. Bxb4 {[%emt 0:02:46]} Bxb4 {[%emt 0:00:10]} 23. Qxb3 {[%emt 0:00:21]} Bxe1 {[%emt 0:00:02]} 24. Rxe1 {[%emt 0:00:14]} Qxd4 {[%emt 0:00:01]} 25. Bxb7 {[%emt 0:14:14]} Rb8 {[%emt 0:01:11]} 26. Qf3 {[%emt 0:00:26]} Qd2 {[%emt 0:00:48]} 27. Rf1 {[%emt 0:05:16]} Rd3 {[%emt 0:02:33]} 28. Nb1 {[%emt 0:00:22]} Rxf3 {[%emt 0:00:42]} 29. Nxd2 {[%emt 0:00:03]} Rd3 {[%emt 0:00:07]} 30. Ne4 {[%emt 0:00:11]} Rd4 {[%emt 0:02:35]} 31. Ba6 {[%emt 0:03:44]} Rxe4 {[%emt 0:01:32]} 32. c5 {[%emt 0:00:01]} Ra4 {[%emt 0:00:09]} 33. Be2 {[%emt 0:02:14]} Rc8 {[%emt 0:02:52]} 34. Rc1 {[%emt 0:01:20]} Kf8 {[%emt 0:00:27]} 35. g3 {[%emt 0:01:55]} Ke7 {[%emt 0:00:37]} 36. h4 {[%emt 0:00:06]} Rc7 {[%emt 0:01:02]} 37. Kg2 {[%emt 0:00:40]} e5 {[%emt 0:01:28]} 38. g4 {[%emt 0:00:50]} e4 {[%emt 0:00:23]} 39. g5 {[%emt 0:01:05]} Ra5 {[%emt 0:00:08]} 40. Rc4 {[%emt 0:00:28]} Rcxc5 {[%emt 0:00:04]} 41. Rxe4+ {[%emt 0:00:10]} Re5 {[%emt 0:00:01]} 0-1

[Event "FIDE WCCC Open-12 2024"]
[Site "Montesilvano"]
[Date "2024.11.18"]
[Round "2.38"]
[White "Dos Santos, Leonardo Lopes"]
[Black "Shirinov, Yashar"]
[Result "1/2-1/2"]
[ECO "B01"]
[WhiteElo "1930"]
[BlackElo "1642"]
[PlyCount "37"]
[EventDate "2024.11.18"]
[EventType "swiss"]
[EventCountry "ITA"]
[TimeControl "5400+30"]

1. e4 {[%emt 0:00:05]} d5 {[%emt 0:00:24]} 2. exd5 {[%emt 0:00:17]} Nf6 {[%emt 0:00:14]} 3. d4 {[%emt 0:02:47]} Nxd5 {[%emt 0:00:50]} 4. Nf3 {[%emt 0:00:34]} g6 {[%emt 0:00:27]} 5. Be2 {[%emt 0:01:31]} Bg7 {[%emt 0:00:49]} 6. c3 {[%emt 0:01:14]} O-O {[%emt 0:00:21]} 7. O-O {[%emt 0:00:24]} Nc6 {[%emt 0:04:19]} 8. Re1 {[%emt 0:03:42]} Bf5 {[%emt 0:03:00]} 9. Bf1 {[%emt 0:14:22]} Re8 {[%emt 0:06:45]} 10. Nbd2 {[%emt 0:06:46]} Qd7 {[%emt 0:07:50]} 11. Nc4 {[%emt 0:07:56]} Rad8 {[%emt 0:05:56]} 12. Bg5 {[%emt 0:07:36]} h6 {[%emt 0:10:50]} 13. Bh4 {[%emt 0:01:19]} Nf4 {[%emt 0:11:34]} 14. Nce5 {[%emt 0:18:56]} Nxe5 {[%emt 0:03:28]} 15. Nxe5 {[%emt 0:00:36]} Qd5 {[%emt 0:00:13]} 16. Bg3 {[%emt 0:06:59]} Bxe5 {[%emt 0:02:31]} 17. Rxe5 {[%emt 0:00:06]} Qxe5 {[%emt 0:00:08]} 18. dxe5 {[%emt 0:00:08]} Rxd1 {[%emt 0:00:04]} 19. Rxd1 {[%emt 0:00:11]} 1/2-1/2